bitfinex/quotes_SOLUSD_20240626
["timestamp","ask_amount","ask_price","bid_price","bid_amount"]
[1719423382000,7.9823,135.64,135.56,7.3766]
[1719423382201,7.3752,135.59,135.55,25.8193]
[1719423382408,54.89,135.62,135.55,18.4421]
[1719423382602,54.89,135.62,135.57,18.4402]
[1719423382903,7.3741,135.61,135.57,25.816]
[1719423383101,54.89,135.62,135.57,18.4402]
[1719423383301,20.0,135.61,135.57,25.8162]
[1719423383498,20.0,135.61,135.54,18.4434]
[1719423383706,0.34,135.6,135.54,18.4434]
[1719423384107,7.3751,135.59,135.55,7.3771]
[1719423384417,7.715,135.6,135.54,18.4434]
[1719423384621,20.0,135.59,135.55,7.3771]
[1719423384789,20.0,135.59,135.56,18.4416]
[1719423384991,20.0,135.59,135.57,7.3761]
[1719423385189,20.34,135.6,135.56,25.8182]
[1719423385390,20.34,135.6,135.56,18.4416]
[1719423385682,7.3756,135.59,135.55,7.3772]
[1719423385999,7.376,135.58,135.54,7.3777]
[1719423386704,54.89,135.59,135.53,18.4452]
[1719423386912,7.377,135.56,135.53,18.4452]
[1719423387210,28.1924,135.58,135.5,18.449]
[1719423387414,0.17,135.57,135.5,18.449]
[1719423388100,7.377,135.56,135.52,7.3786]
[1719423388733,7.3773,135.55,135.51,7.3795]
[1719423388911,7.3773,135.55,135.5,18.449]
[1719423388912,27.378,135.54,135.5,25.8287]
[1719423389292,20.0,135.54,135.5,18.449]
[1719423389493,20.0,135.55,135.5,18.449]
[1719423390016,20.0,135.55,135.52,7.3786]
[1719423390198,20.0,135.55,135.53,7.3783]
[1719423390398,20.0,135.55,135.52,25.8259]
[1719423391018,27.3775,135.55,135.51,7.3794]
[1719423391230,20.0,135.55,135.52,7.3788]
[1719423391399,20.0,135.55,135.53,7.3784]
[1719423392023,20.0,135.55,135.51,18.4486]
[1719423392206,27.3777,135.55,135.51,25.828]
[1719423392828,20.0,135.55,135.52,7.3789]
[1719423393044,20.0,135.55,135.53,7.3784]
[1719423393338,20.0,135.55,135.52,7.3787]
[1719423393704,0.34,135.57,135.54,7.3778]
[1719423393902,0.34,135.57,135.53,25.8239]
[1719423393903,7.7163,135.57,135.53,25.8239]
[1719423394103,7.3768,135.56,135.53,18.446]
[1719423394303,7.7164,135.57,135.53,25.8244]
[1719423395627,20.0,135.58,135.55,7.3773]
[1719423395807,7.3755,135.59,135.55,7.3773]
[1719423396117,7.3757,135.58,135.54,8.8531959]
[1719423396326,7.3754,135.59,135.55,7.3773]
[1719423397106,7.3758,135.58,135.54,8.8531959]
[1719423397419,7.3766,135.57,135.53,25.824]
[1719423397601,40.5253,135.61,135.5,20.7273]
[1719423397602,7.3742,135.61,135.57,7.3761]
[1719423397807,7.3743,135.61,135.57,7.3761]
[1719423398023,7.7602,135.64,135.58,18.4388]
[1719423398325,15.1328,135.64,135.59,7.3747]
[1719423398502,15.1329,135.64,135.6,7.3745]
[1719423398703,15.1329,135.64,135.58,18.4388]
[1719423398905,7.7602,135.64,135.61,7.3739]
[1719423399115,7.3724,135.64,135.6,25.8104]
[1719423399318,7.373,135.63,135.6,18.436]
[1719423399711,7.373,135.63,135.59,7.3749]
[1719423400620,7.3725,135.64,135.6,7.3746]
[1719423401014,7.3725,135.64,135.61,7.374]
[1719423401214,7.3725,135.64,135.6,7.3744]
[1719423401822,0.34,135.65,135.59,18.4377]
[1719423401823,7.373,135.63,135.59,25.8126]
[1719423402207,7.3725,135.64,135.6,7.3745]
[1719423402412,7.712,135.65,135.61,7.3737]
[1719423402707,20.0,135.64,135.61,18.435]
[1719423402914,20.0,135.65,135.61,18.435]
[1719423403119,20.0,135.65,135.62,7.373]
[1719423403314,20.0,135.65,135.63,7.3727]
[1719423403514,27.3714,135.66,135.62,7.3733]
[1719423404417,7.3725,135.64,135.61,18.435]
[1719423404621,7.3725,135.64,135.6,7.3744]
[1719423404824,7.3739,135.62,135.58,25.8134]
[1719423406330,7.3725,135.64,135.6,7.3746]
[1719423406632,20.0,135.63,135.6,7.3746]
[1719423407327,34.9878,135.65,135.61,7.3739]
[1719423407511,20.0,135.64,135.61,7.3739]
[1719423407707,20.0,135.64,135.59,18.4366]
[1719423407913,27.3728,135.64,135.6,7.3744]
[1719423408214,27.3725,135.64,135.6,7.3744]
[1719423410028,7.3731,135.63,135.59,25.8116]
[1719423410749,20.0,135.64,135.55,36.8849]
[1719423411047,0.34,135.63,135.57,25.8167]
[1719423411216,40.8626,135.63,135.55,18.4432]
[1719423411410,7.3749,135.6,135.56,7.3765]
[1719423411817,7.3749,135.6,135.57,7.3762]
[1719423412053,7.7143,135.61,135.57,7.3762]
[1719423412344,20.0,135.6,135.57,7.3762]
[1719423412651,27.3746,135.6,135.56,25.8173]
[1719423413236,20.0,135.6,135.57,7.3762]
[1719423413436,27.3747,135.6,135.56,25.8172]
[1719423414741,7.376,135.58,135.54,7.3773]
[1719423415543,19.5816,135.58,135.5,38.3324]
[1719423415736,7.3775,135.55,135.51,7.3791]
[1719423415927,7.377,135.56,135.52,7.3788]
[1719423416728,7.377,135.56,135.52,25.61788342]
[1719423417635,0.34,135.57,135.5,27.263]
[1719423417823,20.34,135.57,135.52,7.3789]
[1719423418438,20.34,135.57,135.53,7.3782]
[1719423418631,27.7163,135.57,135.5,19.8833]
[1719423419025,7.378,135.54,135.5,7.3797]
[1719423419237,7.3775,135.55,135.5,7.3797]
[1719423419441,20.0,135.54,135.5,25.829]
[1719423420033,20.0,135.54,135.51,7.3794]
[1719423420336,27.3776,135.55,135.51,7.3794]
[1719423420539,0.34,135.54,135.51,7.3794]
[1719423420741,7.7179,135.54,135.5,25.8292]
[1719423420942,0.17,135.54,135.5,18.4493]
[1719423421240,42.09,135.57,135.5,18.4493]
[1719423421443,7.3776,135.55,135.51,7.3793]
[1719423421743,20.34,135.54,135.51,7.3793]
[1719423422145,27.7179,135.54,135.5,25.8292]
[1719423422331,7.3788,135.53,135.47,18.4533]
[1719423423246,27.718,135.54,135.5,7.38]
[1719423424037,7.3786,135.53,135.49,25.8317]
[1719423424749,27.718,135.54,135.5,7.3799]
[1719423424927,20.34,135.54,135.51,7.3795]
[1719423425549,27.7179,135.54,135.5,7.3799]
[1719423426931,22.09,135.52,135.46,18.4543]
[1719423427125,7.3806,135.49,135.45,7.3826]
[1719423427530,7.3801,135.5,135.46,7.3821]
[1719423427735,0.34,135.49,135.45,25.8392]
[1719423427951,7.7207,135.49,135.45,25.8392]
[1719423428139,0.34,135.49,135.46,7.3822]
[1719423428846,62.2694,135.52,135.47,7.3813]
[1719423429148,20.34,135.51,135.47,7.3813]
[1719423429344,20.17,135.51,135.48,7.3811]
[1719423429538,20.0,135.51,135.48,7.3811]
[1719423429927,27.3796,135.51,135.47,25.8355]
[1719423430343,7.3802,135.5,135.46,7.3821]
[1719423430540,20.0,135.51,135.47,18.4541]
[1719423430748,20.0,135.51,135.48,7.381]
[1719423430937,27.3795,135.51,135.47,25.8357]
[1719423432143,7.3801,135.5,135.47,18.4541]
[1719423432631,7.3801,135.5,135.47,25.8357]
[1719423432952,7.3807,135.49,135.44,56.2139848]
[1719423433148,7.3807,135.49,135.45,7.3824]
[1719423433453,7.7203,135.5,135.46,7.3821]
[1719423433630,7.3807,135.49,135.45,7.3826]
[1719423434851,7.3823,135.46,135.44,0.8411848]
[1719423435040,7.3818,135.47,135.44,0.8411848]
[1719423435244,0.34,135.46,135.44,0.8411848]
[1719423435647,7.7223,135.46,135.44,0.8411848]
[1719423435950,27.3827,135.45,135.44,0.8411848]
[1719423436155,27.7227,135.45,135.44,0.8411848]
[1719423438132,20.34,135.45,135.44,0.8411848]
[1719423438348,20.0,135.45,135.44,0.8411848]
[1719423439036,7.3822,135.46,135.44,0.8411848]
[1719423439553,7.5518,135.47,135.44,0.8411848]
[1719423439753,7.3817,135.47,135.44,0.8411848]
[1719423439952,35.1649,135.49,135.45,7.3827]
[1719423440151,20.0,135.48,135.46,7.3821]
[1719423440457,19.6743,135.52,135.44,0.8411848]
[1719423440753,7.7928,135.53,135.48,18.4528]
[1719423440956,20.0,135.52,135.48,18.4528]
[1719423441145,20.0,135.52,135.48,25.8338]
[1719423441340,27.3793,135.52,135.48,25.8338]
[1719423441643,27.3793,135.52,135.48,18.4528]
[1719423442349,27.3793,135.52,135.48,25.8337]
[1719423442556,20.0,135.52,135.49,7.3804]
[1719423442849,27.379,135.52,135.48,18.4528]
[1719423443155,7.3796,135.51,135.47,7.3815]
[1719423443835,7.3802,135.5,135.46,7.382]
[1719423445658,7.3806,135.49,135.45,18.4559]
[1719423445840,7.3806,135.49,135.45,25.8384]
[1719423446041,18.7888,135.51,135.44,0.8411848]
[1719423446244,7.3823,135.46,135.44,0.8411848]
[1719423446556,7.3816,135.48,135.44,8.2244848]
[1719423446756,27.7217,135.47,135.44,0.8411848]
[1719423447547,20.34,135.47,135.44,8.2243848]
[1719423447937,20.17,135.47,135.45,7.3827]
[1719423448155,20.0,135.48,135.45,7.3827]
[1719423448457,20.0,135.48,135.44,0.8411848]
[1719423449361,7.3827,135.45,135.44,0.8411848]
[1719423449544,7.3824,135.46,135.44,0.8411848]
[1719423449939,15.316,135.47,135.44,0.8411848]
[1719423450253,20.0,135.46,135.44,8.2244848]
[1719423450455,20.0,135.46,135.44,0.8411848]
[1719423450650,27.3822,135.46,135.44,0.8411848]
[1719423451155,7.5527,135.45,135.44,0.8411848]
[1719423451363,27.7227,135.45,135.44,0.8411848]
[1719423451569,88.5859,135.45,135.44,0.8411848]
[1719423456548,7.386,135.39,135.36,18.4692]
[1719423457056,7.3857,135.4,135.36,25.8568]
[1719423457364,7.3863,135.39,135.36,18.4692]
[1719423457745,7.3857,135.4,135.36,25.8568]
[1719423457942,55.23,135.41,135.36,18.4692]
[1719423458147,62.615,135.41,135.37,7.3867]
[1719423458772,62.615,135.41,135.38,7.3866]
[1719423458970,54.89,135.41,135.38,7.3866]
[1719423459178,54.89,135.44,135.38,18.466]
[1719423459352,7.3847,135.42,135.38,25.8522]
[1719423459556,20.0,135.43,135.42,7.3844]
[1719423459765,7.3829,135.45,135.41,7.3848]
[1719423460073,20.0,135.44,135.42,18.461]
[1719423460271,20.0,135.44,135.41,7.3845]
[1719423460574,20.0,135.44,135.41,7.3846]
[1719423461266,7.384,135.43,135.39,7.3858]
[1719423461574,7.554,135.43,135.39,7.3858]
[1719423461774,0.17,135.43,135.4,7.3853]
[1719423461974,0.17,135.44,135.41,7.3848]
[1719423462273,20.0,135.46,135.42,18.461]
[1719423462476,7.3812,135.48,135.44,7.3829]
[1719423462770,20.0,135.47,135.44,7.3829]
[1719423462974,27.382,135.47,135.43,7.3836]
[1719423463462,27.3817,135.47,135.42,18.461]
[1719423463660,27.3817,135.47,135.43,7.3837]
[1719423464186,42.19,135.47,135.41,7.3844]
[1719423464392,7.3829,135.45,135.41,7.3849]
[1719423464689,7.7233,135.44,135.4,26.8921]
[1719423464885,0.17,135.44,135.41,7.3849]
[1719423465067,0.34,135.44,135.41,7.3849]
[1719423465390,20.34,135.44,135.39,18.4639]
[1719423465592,0.34,135.44,135.39,18.4639]
[1719423465783,7.3839,135.43,135.39,25.8496]
[1719423466167,7.3839,135.43,135.39,7.3859]
[1719423466168,0.17,135.42,135.39,7.3859]
[1719423466477,0.17,135.42,135.4,7.3854]
[1719423466668,20.34,135.43,135.4,7.3854]
[1719423466966,20.17,135.43,135.4,7.3854]
[1719423467589,20.17,135.43,135.41,7.3847]
[1719423467788,20.17,135.44,135.41,7.3847]
[1719423468083,20.0,135.44,135.41,25.8469]
[1719423468384,20.0,135.44,135.38,18.4658]
[1719423468567,0.17,135.45,135.4,18.4633]
[1719423468777,0.17,135.44,135.41,7.3848]
[1719423468973,20.17,135.44,135.41,7.3848]
[1719423470193,26.8157,135.49,135.45,7.3825]
[1719423470486,20.0,135.48,135.45,7.3824]
[1719423470795,15.2314,135.5,135.46,7.382]
[1719423470961,27.3806,135.49,135.45,7.3826]
[1719423471165,27.3806,135.49,135.44,25.8405]
[1719423471501,20.0,135.49,135.43,20.5725]
[1719423471793,0.34,135.48,135.42,18.4609]
[1719423471963,7.3828,135.45,135.42,18.4609]
[1719423472168,0.17,135.46,135.4,19.0019]
[1719423472370,38.6257,135.46,135.4,19.0019]
[1719423472679,0.17,135.45,135.4,19.0019]
[1719423472872,7.3835,135.44,135.4,26.3871]
[1719423473368,7.553,135.45,135.41,7.3849]
[1719423473583,27.5524,135.46,135.42,7.3844]
[1719423474097,0.17,135.45,135.4,19.0019]
[1719423474272,0.17,135.45,135.38,18.4659]
[1719423474672,7.3835,135.44,135.39,7.3855]
[1719423474883,0.17,135.43,135.4,7.3853]
[1719423475291,0.17,135.43,135.4,25.849]
[1719423475597,20.34,135.44,135.41,7.3849]
[1719423476281,20.34,135.44,135.4,25.849]
[1719423476581,27.7233,135.44,135.4,25.849]
[1719423477213,20.34,135.44,135.36,57.1538]
[1719423477380,0.34,135.44,135.36,57.1538]
[1719423477572,0.34,135.44,135.4,7.385]
[1719423477775,42.19,135.46,135.4,7.3853]
[1719423478080,42.19,135.46,135.39,18.4647]
[1719423478081,7.3829,135.45,135.41,7.3849]
[1719423478398,27.3834,135.44,135.4,7.3854]
[1719423478702,20.0,135.44,135.41,7.3846]
[1719423478995,7.3831,135.45,135.41,7.3846]
[1719423479168,20.0,135.44,135.4,7.3853]
[1719423479374,27.59,135.44,135.39,25.8506]
[1719423479683,7.3851,135.41,135.37,7.3868]
[1719423480070,7.3851,135.41,135.36,25.8558]
[1719423480292,20.0,135.4,135.35,7.3877]
[1719423480503,20.0,135.4,135.36,7.3872]
[1719423480793,20.0,135.4,135.33,20.1114]
[1719423480999,0.17,135.42,135.39,7.386]
[1719423481195,7.5548,135.42,135.38,7.3863]
[1719423481385,20.17,135.41,135.38,7.3863]
[1719423481587,20.0,135.41,135.37,18.4676]
[1719423481779,20.0,135.41,135.38,7.3864]
[1719423482092,20.0,135.43,135.39,18.4649]
[1719423482296,7.3845,135.42,135.38,7.3865]
[1719423482487,20.17,135.41,135.38,7.3865]
[1719423482672,7.59,135.44,135.36,36.9372]
[1719423482873,20.0,135.43,135.4,7.3854]
[1719423483382,20.0,135.43,135.41,7.3849]
[1719423483887,20.0,135.43,135.41,25.8471]
[1719423484079,20.0,135.44,135.42,7.3842]
[1719423484282,20.0,135.44,135.41,25.8472]
[1719423484477,20.0,135.46,135.43,18.4595]
[1719423484688,20.0,135.46,135.44,7.3833]
[1719423485001,14.9654,135.47,135.43,18.4595]
[1719423485293,7.3832,135.45,135.4,18.4627]
[1719423485498,7.3832,135.45,135.41,7.3846]
[1719423486385,7.3833,135.44,135.4,25.848]
[1719423486784,7.3829,135.45,135.41,7.3849]
[1719423486981,7.7223,135.46,135.42,7.3843]
[1719423487177,20.0,135.45,135.42,7.3843]
[1719423487391,0.34,135.46,135.43,7.3836]
[1719423487575,20.0,135.46,135.44,7.3833]
[1719423487998,20.0,135.46,135.43,7.3837]
[1719423488572,20.0,135.46,135.45,7.3827]
[1719423488775,20.0,135.46,135.44,18.4579]
[1719423489098,28.5149,135.5,135.44,18.4579]
[1719423489099,20.0,135.49,135.44,18.4579]
[1719423490201,20.0,135.49,135.44,25.841]
[1719423490202,7.3811,135.48,135.44,25.841]
[1719423490379,20.0,135.47,135.44,25.841]
[1719423490797,27.3818,135.47,135.44,18.4579]
[1719423491001,7.3824,135.46,135.42,7.3843]
[1719423492382,27.5519,135.47,135.43,7.3834]
[1719423492689,0.17,135.46,135.39,56.0278]
[1719423492899,0.34,135.46,135.39,56.0278]
[1719423493202,0.34,135.46,135.4,7.3851]
[1719423493203,7.3836,135.44,135.4,7.3851]
[1719423493401,0.34,135.46,135.39,18.4643]
[1719423493402,7.3844,135.43,135.39,18.4643]
[1719423493603,27.5545,135.42,135.36,18.4679]
[1719423493842,0.17,135.41,135.38,7.3865]
[1719423494485,20.17,135.42,135.39,7.386]
[1719423495201,20.0,135.42,135.39,7.386]
[1719423495704,27.3844,135.42,135.38,18.4663]
[1719423496409,7.5551,135.41,135.38,18.4663]
[1719423497410,20.0,135.42,135.38,18.4663]
[1719423497610,20.17,135.43,135.38,18.4663]
[1719423497814,0.17,135.42,135.38,18.4663]
[1719423498298,27.384,135.43,135.39,7.3856]
[1719423498715,20.0,135.43,135.4,7.3855]
[1719423499015,7.3836,135.44,135.4,25.8487]
[1719423499317,7.3834,135.44,135.4,25.8488]
[1719423499616,7.3839,135.43,135.4,18.4636]
[1719423499812,7.3835,135.44,135.4,25.849]
[1719423500012,7.3843,135.43,135.35,57.2548]
[1719423500194,7.3843,135.43,135.39,7.3858]
[1719423500895,7.3845,135.42,135.38,7.3864]
[1719423501618,7.384,135.43,135.39,7.386]
[1719423501819,7.5544,135.42,135.38,7.3863]
[1719423502812,0.17,135.42,135.39,7.386]
[1719423503520,0.17,135.42,135.35,38.7846]
[1719423503695,7.3853,135.41,135.37,7.3869]
[1719423503895,0.17,135.42,135.37,7.3869]
[1719423504106,7.3851,135.41,135.37,7.3869]
[1719423505021,27.7259,135.4,135.35,38.7846]
[1719423505197,27.5559,135.4,135.35,38.7846]
[1719423505397,8.0633,135.39,135.35,18.4692]
[1719423505729,0.34,135.38,135.35,25.8574]
[1719423506820,20.34,135.38,135.35,25.8574]
[1719423506994,20.34,135.38,135.36,7.3876]
[1719423507623,20.34,135.38,135.35,25.8572]
[1719423508725,20.0,135.38,135.36,7.3876]
[1719423509024,7.3851,135.41,135.37,7.3871]
[1719423509216,20.436,135.42,135.33,36.9457]
[1719423509521,8.2249,135.43,135.4,7.3855]
[1719423509703,20.0,135.42,135.39,25.8497]
[1719423510403,27.3844,135.42,135.37,18.4678]
[1719423510707,27.3844,135.42,135.38,7.3864]
[1719423512425,20.0,135.42,135.4,7.3854]
[1719423513019,20.0,135.42,135.39,18.4651]
[1719423513215,27.3848,135.42,135.38,7.3862]
[1719423513709,7.385,135.41,135.37,25.8535]
[1719423514020,27.3846,135.42,135.38,7.3863]
[1719423514315,27.3846,135.42,135.37,18.4666]
[1719423514316,20.0,135.42,135.39,7.386]
[1719423514523,27.3845,135.42,135.39,18.4649]
[1719423515011,20.0,135.42,135.39,25.8507]
[1719423515322,27.3844,135.42,135.38,7.3863]
[1719423517808,7.385,135.41,135.37,25.8547]
[1719423518918,20.324,135.45,135.39,18.4645]
[1719423519124,27.3837,135.44,135.4,7.385]
[1719423519321,20.0,135.44,135.4,18.4625]
[1719423519623,27.7068,135.45,135.41,7.3847]
[1719423520018,20.324,135.45,135.4,18.4625]
[1719423520220,7.5536,135.44,135.4,25.8478]
[1719423520412,27.7068,135.45,135.41,7.3847]
[1719423522023,7.3823,135.46,135.42,7.3842]
[1719423522324,8.3172,135.47,135.43,7.3836]
[1719423522325,15.8691,135.47,135.43,7.3836]
[1719423522526,20.17,135.46,135.43,7.3836]
[1719423523323,27.5522,135.46,135.42,7.3841]
[1719423523533,20.17,135.46,135.39,18.465]
[1719423523846,0.17,135.45,135.39,18.465]
[1719423524001,20.17,135.46,135.4,18.4625]
[1719423524204,27.5525,135.46,135.42,7.3841]
[1719423524405,7.3829,135.45,135.41,25.8459]
[1719423524631,7.3833,135.44,135.41,18.4611]
[1719423525104,7.383,135.45,135.41,25.846]
[1719423525311,0.17,135.44,135.38,18.4652]
[1719423525609,7.3842,135.43,135.39,7.3857]
[1719423525805,0.17,135.42,135.35,20.3493]
[1719423526030,27.3848,135.42,135.37,7.3867]
[1719423526207,20.0,135.42,135.37,18.4674]
[1719423526707,0.17,135.43,135.37,18.4674]
[1719423526907,7.3844,135.42,135.38,7.3862]
[1719423527124,0.17,135.43,135.38,7.3862]
[1719423527624,7.5541,135.43,135.39,7.3858]
[1719423527935,27.3845,135.42,135.38,7.3865]
[1719423530738,20.0,135.42,135.38,7.3865]
[1719423530923,7.5535,135.44,135.39,18.4649]
[1719423531234,20.0,135.43,135.4,7.3851]
[1719423531537,27.3838,135.43,135.39,18.4649]
[1719423531834,20.0,135.43,135.36,18.4686]
[1719423532332,7.3851,135.41,135.37,7.3871]
[1719423533632,7.3845,135.42,135.38,7.3865]
[1719423533928,27.3841,135.43,135.39,7.3859]
[1719423534134,7.384,135.43,135.39,7.3858]
[1719423534330,7.3844,135.42,135.38,25.8529]
[1719423534530,7.384,135.43,135.39,7.386]
[1719423535236,7.3845,135.42,135.38,25.8529]
[1719423535434,55.08,135.44,135.39,7.3859]
[1719423535435,7.3839,135.43,135.39,7.3859]
[1719423535933,7.3839,135.43,135.38,25.8528]
[1719423536132,7.3844,135.42,135.38,25.8528]
[1719423536336,7.3844,135.42,135.38,18.4665]
[1719423536518,7.3844,135.42,135.38,25.853]
[1719423536713,7.3844,135.42,135.35,20.3493]
[1719423536714,77.27,135.44,135.36,18.4691]
[1719423536911,7.385,135.41,135.37,7.3867]
[1719423537116,7.3849,135.41,135.37,7.3869]
[1719423537314,7.3845,135.42,135.38,7.3864]
[1719423537512,7.3845,135.42,135.36,18.4691]
[1719423538037,7.385,135.41,135.37,7.3868]
[1719423538242,20.0,135.43,135.36,36.9362]
[1719423538430,20.0,135.44,135.41,7.3849]
[1719423539345,27.7933,135.45,135.41,7.3849]
[1719423541031,7.3823,135.46,135.41,25.847]
[1719423541422,7.3828,135.45,135.41,25.847]
[1719423542743,7.3825,135.46,135.42,7.3843]
[1719423543349,7.3829,135.45,135.41,25.8472]
[1719423543524,63.7372,135.47,135.41,18.4623]
[1719423543728,20.34,135.46,135.41,18.4623]
[1719423544345,7.3832,135.45,135.41,25.8472]
[1719423547549,27.7224,135.46,135.42,7.3844]
[1719423548642,27.53,135.43,135.42,7.3844]
[1719423550741,11.21418162,135.48,135.44,7.3832]
[1719423550944,27.53,135.46,135.44,7.3832]
[1719423551139,27.53,135.46,135.43,25.8429]
[1719423552546,44.47598162,135.48,135.41,19.8206]
[1719423552757,27.53,135.42,135.39,7.386]
[1719423552930,27.53,135.45,135.38,20.3723]
[1719423553126,27.53,135.43,135.38,20.3723]
[1719423553340,27.53,135.44,135.42,18.4607]
[1719423553555,0.34,135.47,135.39,36.9288]
[1719423553757,27.53,135.43,135.39,36.9288]
[1719423553956,27.53,135.43,135.41,7.3848]
[1719423554853,7.3825,135.46,135.42,7.3844]
[1719423555046,20.0,135.45,135.42,7.3844]
[1719423555251,27.3828,135.45,135.41,7.3847]
[1719423555752,0.34,135.47,135.39,36.9288]
[1719423556451,7.3825,135.46,135.42,7.384]
[1719423556659,7.722,135.47,135.43,7.3838]
[1719423558455,0.34,135.47,135.44,18.4582]
[1719423558644,0.17,135.47,135.44,18.4582]
[1719423559036,7.3817,135.47,135.43,7.3837]
[1719423560655,0.34,135.48,135.45,18.4564]
[1719423560840,0.34,135.48,135.45,25.839]
[1719423561373,0.17,135.48,135.45,18.4564]
[1719423561850,7.3792,135.52,135.48,7.3811]
[1719423562063,20.0,135.51,135.49,7.3804]
[1719423562350,7.3781,135.54,135.49,7.3804]
[1719423562533,2.71471756,135.54,135.49,18.4502]
[1719423562735,2.71471756,135.54,135.46,120.5018]
[1719423562935,2.71471756,135.54,135.51,18.4487]
[1719423563156,2.71471756,135.54,135.51,25.8278]
[1719423563458,2.71471756,135.54,135.52,7.3789]
[1719423564659,2.71471756,135.54,135.51,18.4487]
[1719423564851,2.71471756,135.54,135.53,7.3784]
[1719423565057,2.71471756,135.54,135.52,7.3787]
[1719423565259,2.71471756,135.54,135.53,7.3784]
[1719423565440,2.71471756,135.54,135.52,7.3788]
[1719423565955,2.71471756,135.54,135.51,18.4487]
[1719423566262,2.71471756,135.54,135.49,7.3804]
[1719423566444,2.71471756,135.54,135.48,18.4518]
[1719423566651,10.09261756,135.54,135.49,7.3804]
[1719423567265,2.71471756,135.54,135.46,20.5018]
[1719423567561,2.71471756,135.54,135.52,25.8248]
[1719423567939,2.71471756,135.54,135.53,7.3784]
[1719423568354,2.71471756,135.54,135.52,18.4464]
[1719423568557,2.71471756,135.54,135.48,36.9056]
[1719423568558,10.09261756,135.54,135.5,7.3796]
[1719423568762,7.3784,135.53,135.49,18.4508]
[1719423568941,7.3791,135.52,135.46,38.9563]
[1719423569146,7.5485,135.53,135.48,7.3807]
[1719423569346,7.3801,135.5,135.46,18.4545]
[1719423569546,7.3797,135.51,135.46,25.8365]
[1719423569742,7.3801,135.5,135.46,25.8365]
[1719423570157,7.3812,135.48,135.43,25.8426]
[1719423570559,0.34,135.49,135.44,7.3831]
[1719423570884,0.34,135.49,135.45,7.3825]
[1719423571044,0.34,135.49,135.46,7.3822]
[1719423571448,7.3795,135.51,135.47,7.3816]
[1719423571667,20.0,135.5,135.47,7.3816]
[1719423572350,20.0,135.51,135.47,7.3816]
[1719423572562,27.3796,135.51,135.47,7.3816]
[1719423572762,27.3796,135.51,135.45,18.4564]
[1719423572763,27.3796,135.51,135.46,7.382]
[1719423573145,7.5501,135.5,135.45,18.4564]
[1719423573351,7.5501,135.5,135.45,25.8389]
[1719423574070,7.3807,135.49,135.45,18.4564]
[1719423574275,7.3815,135.48,135.42,39.3112]
[1719423574572,0.17,135.48,135.45,7.3827]
[1719423575566,20.17,135.49,135.45,7.3827]
[1719423575767,0.17,135.48,135.45,7.3827]
[1719423576771,0.17,135.48,135.44,25.8412]
[1719423577858,36.8722,135.61,135.43,1.26819924]
[1719423578055,38.64271756,135.54,135.5,25.8284]
[1719423578273,38.64271756,135.54,135.44,36.9152]
[1719423578274,7.3785,135.53,135.48,7.381]